[Event "Titled Tuesday Blitz February 22 Early 2022"]
[White "Goltsev, Dmitry"]
[Black "Dauner, Benedikt"]
[WhiteFideId "24176710"]
[BlackFideId "16225899"]
[WhiteElo "2273"]
[BlackElo "2230"]
[Result "1-0"]
[Round "09"]
[TimeControl "180+1"]
[Date "2022.02.22"]
[WhiteClock "0:01:27"]
[BlackClock "0:00:01"]

1. e4 {[%clk 0:02:56]}  e5 {[%clk 0:02:57]} 2. Nf3 {[%clk 0:02:57]}  Nc6 {[%clk 0:02:57]} 3. Bb5 {[%clk 0:02:57]}  a6 {[%clk 0:02:53]} 4. Ba4 {[%clk 0:02:57]}  Nf6 {[%clk 0:02:52]} 5. O-O {[%clk 0:02:57]}  b5 {[%clk 0:02:48]} 6. Bb3 {[%clk 0:02:58]}  Be7 {[%clk 0:02:48]} 7. Re1 {[%clk 0:02:54]}  O-O {[%clk 0:02:47]} 8. c3 {[%clk 0:02:55]}  d6 {[%clk 0:02:46]} 9. d4 {[%clk 0:02:54]}  Bg4 {[%clk 0:02:40]} 10. d5 {[%clk 0:02:54]}  Nb8 {[%clk 0:02:32]} 11. a4 {[%clk 0:02:53]}  Nbd7 {[%clk 0:02:29]} 12. h3 {[%clk 0:02:50]}  Bxf3 {[%clk 0:02:19]} 13. Qxf3 {[%clk 0:02:51]}  Nc5 {[%clk 0:02:19]} 14. Bc2 {[%clk 0:02:50]}  bxa4 {[%clk 0:02:18]} 15. Be3 {[%clk 0:02:50]}  Nfd7 {[%clk 0:02:16]} 16. Nd2 {[%clk 0:02:44]}  Bg5 {[%clk 0:02:15]} 17. Nc4 {[%clk 0:02:39]}  Rb8 {[%clk 0:02:06]} 18. Ra2 {[%clk 0:02:31]}  Bxe3 {[%clk 0:02:00]} 19. Nxe3 {[%clk 0:02:28]}  Qf6 {[%clk 0:01:55]} 20. Qe2 {[%clk 0:02:27]}  Rb7 {[%clk 0:01:42]} 21. Nc4 {[%clk 0:02:22]}  Rfb8 {[%clk 0:01:40]} 22. Bxa4 {[%clk 0:02:22]}  Nxa4 {[%clk 0:01:36]} 23. Rxa4 {[%clk 0:02:23]}  Nc5 {[%clk 0:01:37]} 24. Ra2 {[%clk 0:02:19]}  Qf4 {[%clk 0:01:26]} 25. g3 {[%clk 0:02:16]}  Qh6 {[%clk 0:01:26]} 26. Kg2 {[%clk 0:02:16]}  Qg6 {[%clk 0:01:26]} 27. f3 {[%clk 0:02:14]}  h5 {[%clk 0:01:26]} 28. b4 {[%clk 0:02:12]}  Nd7 {[%clk 0:01:09]} 29. Rxa6 {[%clk 0:02:11]}  h4 {[%clk 0:01:06]} 30. g4 {[%clk 0:02:05]}  Nf6 {[%clk 0:01:01]} 31. Kh2 {[%clk 0:02:04]}  Nh7 {[%clk 0:00:56]} 32. Ne3 {[%clk 0:01:59]}  Qf6 {[%clk 0:00:52]} 33. Kg2 {[%clk 0:01:55]}  Ng5 {[%clk 0:00:49]} 34. Rea1 {[%clk 0:01:50]}  g6 {[%clk 0:00:49]} 35. Ra7 {[%clk 0:01:49]}  Qf4 {[%clk 0:00:43]} 36. Qf2 {[%clk 0:01:48]}  Kg7 {[%clk 0:00:40]} 37. Nf1 {[%clk 0:01:43]}  Rxa7 {[%clk 0:00:23]} 38. Rxa7 {[%clk 0:01:44]}  Rc8 {[%clk 0:00:23]} 39. Qe3 {[%clk 0:01:40]}  Qf6 {[%clk 0:00:21]} 40. c4 {[%clk 0:01:39]}  c6 {[%clk 0:00:19]} 41. Nd2 {[%clk 0:01:36]}  cxd5 {[%clk 0:00:19]} 42. exd5 {[%clk 0:01:37]}  e4 {[%clk 0:00:08]} 43. f4 {[%clk 0:01:36]}  Nh7 {[%clk 0:00:02]} 44. Nxe4 {[%clk 0:01:36]}  Qb2+ {[%clk 0:00:02]} 45. Qd2 {[%clk 0:01:36]}  Qb1 {[%clk 0:00:01]} 46. Qc3+ {[%clk 0:01:35]}  Kg8 {[%clk 0:00:01]} 47. Nf2 {[%clk 0:01:34]}  Re8 {[%clk 0:00:01]} 48. Ra1 {[%clk 0:01:27]} 1-0


[Site "https://www.chess.com"]

[Event "Titled Tuesday Blitz February 22 Early 2022"]
[White "Guliev, Logman"]
[Black "Hjartarson, Johann"]
[WhiteFideId "13400061"]
[BlackFideId "2300044"]
[WhiteElo "2128"]
[BlackElo "2484"]
[Result "0-1"]
[Round "09"]
[TimeControl "180+1"]
[Date "2022.02.22"]
[WhiteClock "0:00:10"]
[BlackClock "0:00:56"]

1. e4 {[%clk 0:03:00]}  c5 {[%clk 0:02:58]} 2. Nf3 {[%clk 0:03:00]}  e6 {[%clk 0:02:58]} 3. d4 {[%clk 0:02:58]}  cxd4 {[%clk 0:02:59]} 4. Nxd4 {[%clk 0:02:59]}  a6 {[%clk 0:02:59]} 5. Bd3 {[%clk 0:02:58]}  Nf6 {[%clk 0:02:56]} 6. O-O {[%clk 0:02:57]}  Qc7 {[%clk 0:02:56]} 7. Nc3 {[%clk 0:02:55]}  Bc5 {[%clk 0:02:51]} 8. Nb3 {[%clk 0:02:54]}  Be7 {[%clk 0:02:51]} 9. f4 {[%clk 0:02:51]}  d6 {[%clk 0:02:51]} 10. Be3 {[%clk 0:02:50]}  Nbd7 {[%clk 0:02:47]} 11. Kh1 {[%clk 0:02:48]}  b5 {[%clk 0:02:46]} 12. Qe2 {[%clk 0:02:42]}  Bb7 {[%clk 0:02:45]} 13. Rae1 {[%clk 0:02:41]}  b4 {[%clk 0:02:41]} 14. Nd1 {[%clk 0:02:40]}  Bxe4 {[%clk 0:02:40]} 15. Bxe4 {[%clk 0:02:29]}  Nxe4 {[%clk 0:02:40]} 16. Bd4 {[%clk 0:02:29]}  Nef6 {[%clk 0:02:34]} 17. f5 {[%clk 0:02:26]}  e5 {[%clk 0:02:33]} 18. Bg1 {[%clk 0:02:16]}  O-O {[%clk 0:02:32]} 19. c3 {[%clk 0:02:08]}  d5 {[%clk 0:02:28]} 20. Qd3 {[%clk 0:01:47]}  Rfe8 {[%clk 0:02:20]} 21. Qh3 {[%clk 0:01:34]}  bxc3 {[%clk 0:02:18]} 22. Nxc3 {[%clk 0:01:33]}  d4 {[%clk 0:02:17]} 23. Ne4 {[%clk 0:01:24]}  Nxe4 {[%clk 0:02:10]} 24. Rxe4 {[%clk 0:01:24]}  Nf6 {[%clk 0:02:10]} 25. Rh4 {[%clk 0:01:20]}  Rac8 {[%clk 0:01:57]} 26. Re1 {[%clk 0:01:12]}  Bb4 {[%clk 0:01:52]} 27. Rf1 {[%clk 0:01:04]}  Qc2 {[%clk 0:01:44]} 28. Rf2 {[%clk 0:00:57]}  Qb1 {[%clk 0:01:40]} 29. g4 {[%clk 0:00:51]}  Qe4+ {[%clk 0:01:24]} 30. Rg2 {[%clk 0:00:50]}  Rc2 {[%clk 0:01:23]} 31. g5 {[%clk 0:00:38]}  Qxg2+ {[%clk 0:01:23]} 32. Qxg2 {[%clk 0:00:38]}  Rxg2 {[%clk 0:01:23]} 33. Kxg2 {[%clk 0:00:38]}  Nd5 {[%clk 0:01:22]} 34. Kf3 {[%clk 0:00:36]}  f6 {[%clk 0:01:18]} 35. a3 {[%clk 0:00:34]}  fxg5 {[%clk 0:01:15]} 36. Re4 {[%clk 0:00:32]}  g4+ {[%clk 0:01:13]} 37. Ke2 {[%clk 0:00:27]}  Bd6 {[%clk 0:00:58]} 38. Nxd4 {[%clk 0:00:20]}  Rb8 {[%clk 0:00:58]} 39. b4 {[%clk 0:00:09]}  Nc3+ {[%clk 0:00:56]} 40. Kd3 {[%clk 0:00:09]}  Nxe4 {[%clk 0:00:56]} 41. Kxe4 {[%clk 0:00:10]}  exd4 {[%clk 0:00:56]} 0-1


[Site "https://www.chess.com"]

[Event "Titled Tuesday Blitz February 22 Early 2022"]
[White "Guseva, Marina"]
[Black "Sarkar, Justin"]
[WhiteFideId "4149351"]
[BlackFideId "2010011"]
[WhiteElo "2232"]
[BlackElo "2038"]
[Result "1-0"]
[Round "09"]
[TimeControl "180+1"]
[Date "2022.02.22"]
[WhiteClock "0:00:03"]
[BlackClock "0:00:02"]

1. d4 {[%clk 0:02:57]}  Nf6 {[%clk 0:02:50]} 2. Nf3 {[%clk 0:02:53]}  d5 {[%clk 0:02:49]} 3. Bf4 {[%clk 0:02:52]}  Bf5 {[%clk 0:02:46]} 4. e3 {[%clk 0:02:50]}  e6 {[%clk 0:02:45]} 5. c4 {[%clk 0:02:49]}  Bb4+ {[%clk 0:02:41]} 6. Nbd2 {[%clk 0:02:47]}  O-O {[%clk 0:02:38]} 7. a3 {[%clk 0:02:35]}  Bd6 {[%clk 0:02:32]} 8. Ne5 {[%clk 0:02:28]}  c5 {[%clk 0:02:25]} 9. dxc5 {[%clk 0:02:14]}  Bxc5 {[%clk 0:02:23]} 10. b4 {[%clk 0:02:02]}  Bd6 {[%clk 0:02:14]} 11. c5 {[%clk 0:01:52]}  Bc7 {[%clk 0:02:04]} 12. Be2 {[%clk 0:01:48]}  Nbd7 {[%clk 0:01:46]} 13. Nxd7 {[%clk 0:01:45]}  Qxd7 {[%clk 0:01:44]} 14. Bxc7 {[%clk 0:01:44]}  Qxc7 {[%clk 0:01:44]} 15. O-O {[%clk 0:01:43]}  e5 {[%clk 0:01:42]} 16. Rc1 {[%clk 0:01:41]}  Rad8 {[%clk 0:01:35]} 17. Nb3 {[%clk 0:01:39]}  d4 {[%clk 0:01:13]} 18. exd4 {[%clk 0:01:33]}  exd4 {[%clk 0:01:13]} 19. Bf3 {[%clk 0:01:24]}  d3 {[%clk 0:01:07]} 20. Qd2 {[%clk 0:01:19]}  Be4 {[%clk 0:01:02]} 21. Bxe4 {[%clk 0:00:58]}  Nxe4 {[%clk 0:01:03]} 22. Qe3 {[%clk 0:00:57]}  Rfe8 {[%clk 0:01:02]} 23. h3 {[%clk 0:00:23]}  f5 {[%clk 0:00:50]} 24. Qf3 {[%clk 0:00:18]}  g6 {[%clk 0:00:45]} 25. Rfd1 {[%clk 0:00:17]}  d2 {[%clk 0:00:39]} 26. Rc2 {[%clk 0:00:14]}  Rd5 {[%clk 0:00:34]} 27. Na5 {[%clk 0:00:10]}  Red8 {[%clk 0:00:31]} 28. Qb3 {[%clk 0:00:09]}  Kg7 {[%clk 0:00:25]} 29. Qb2+ {[%clk 0:00:09]}  Kh6 {[%clk 0:00:14]} 30. Nc4 {[%clk 0:00:08]}  Rd4 {[%clk 0:00:11]} 31. Ne3 {[%clk 0:00:07]}  Qf7 {[%clk 0:00:07]} 32. f3 {[%clk 0:00:05]}  Ng3 {[%clk 0:00:05]} 33. Rcxd2 {[%clk 0:00:04]}  Ne2+ {[%clk 0:00:02]} 34. Rxe2 {[%clk 0:00:02]}  Rxd1+ {[%clk 0:00:02]} 35. Nxd1 {[%clk 0:00:02]}  Rxd1+ {[%clk 0:00:02]} 36. Kh2 {[%clk 0:00:03]}  Qc7+ {[%clk 0:00:02]} 37. Qe5 {[%clk 0:00:03]}  Qxe5+ {[%clk 0:00:02]} 38. Rxe5 {[%clk 0:00:03]}  Rd3 {[%clk 0:00:02]} 39. Re7 {[%clk 0:00:03]}  Rxa3 {[%clk 0:00:02]} 40. Rxb7 {[%clk 0:00:03]} 1-0


[Site "https://www.chess.com"]

[Event "Titled Tuesday Blitz February 22 Early 2022"]
[White "Heinemann, Josefine"]
[Black "Bazarov, Konstantin"]
[WhiteFideId "12900460"]
[BlackFideId "4137000"]
[WhiteElo "2300"]
[BlackElo "2079"]
[Result "0-1"]
[Round "09"]
[TimeControl "180+1"]
[Date "2022.02.22"]
[WhiteClock "0:00:02"]
[BlackClock "0:00:07"]

1. Nf3 {[%clk 0:03:00]}  Nf6 {[%clk 0:02:59]} 2. g3 {[%clk 0:02:59]}  d6 {[%clk 0:03:00]} 3. Bg2 {[%clk 0:03:00]}  e5 {[%clk 0:03:00]} 4. d3 {[%clk 0:03:00]}  Be7 {[%clk 0:03:00]} 5. O-O {[%clk 0:02:59]}  O-O {[%clk 0:03:01]} 6. c4 {[%clk 0:03:00]}  h6 {[%clk 0:03:01]} 7. Nc3 {[%clk 0:02:59]}  Be6 {[%clk 0:03:01]} 8. b4 {[%clk 0:02:57]}  c6 {[%clk 0:03:01]} 9. Bd2 {[%clk 0:02:53]}  Qc8 {[%clk 0:03:00]} 10. b5 {[%clk 0:02:53]}  Bh3 {[%clk 0:02:59]} 11. a4 {[%clk 0:02:53]}  Qg4 {[%clk 0:02:54]} 12. a5 {[%clk 0:02:39]}  Qh5 {[%clk 0:02:45]} 13. Qc2 {[%clk 0:02:13]}  c5 {[%clk 0:02:40]} 14. Rfb1 {[%clk 0:02:09]}  Bxg2 {[%clk 0:02:37]} 15. Kxg2 {[%clk 0:02:08]}  Nbd7 {[%clk 0:02:36]} 16. a6 {[%clk 0:02:03]}  b6 {[%clk 0:02:35]} 17. h3 {[%clk 0:01:49]}  Rfe8 {[%clk 0:02:32]} 18. Be3 {[%clk 0:01:48]}  Bf8 {[%clk 0:02:30]} 19. Nd2 {[%clk 0:01:47]}  Qg6 {[%clk 0:02:22]} 20. Nde4 {[%clk 0:01:37]}  Rad8 {[%clk 0:02:16]} 21. Kh2 {[%clk 0:01:30]}  Nh7 {[%clk 0:02:15]} 22. g4 {[%clk 0:01:17]}  Qe6 {[%clk 0:02:00]} 23. Rg1 {[%clk 0:01:13]}  g6 {[%clk 0:01:55]} 24. Nd5 {[%clk 0:01:07]}  Rc8 {[%clk 0:01:55]} 25. Rg3 {[%clk 0:01:00]}  Bg7 {[%clk 0:01:54]} 26. Rag1 {[%clk 0:00:56]}  Kh8 {[%clk 0:01:53]} 27. Qc1 {[%clk 0:00:53]}  g5 {[%clk 0:01:46]} 28. R3g2 {[%clk 0:00:52]}  f5 {[%clk 0:01:45]} 29. gxf5 {[%clk 0:00:52]}  Qxf5 {[%clk 0:01:44]} 30. Nxd6 {[%clk 0:00:51]}  Qe6 {[%clk 0:01:44]} 31. Nxc8 {[%clk 0:00:51]}  Rxc8 {[%clk 0:01:44]} 32. Bd2 {[%clk 0:00:47]}  Rf8 {[%clk 0:01:37]} 33. Bc3 {[%clk 0:00:45]}  Nhf6 {[%clk 0:01:32]} 34. Nxf6 {[%clk 0:00:42]}  Nxf6 {[%clk 0:01:32]} 35. Qe3 {[%clk 0:00:43]}  Nh5 {[%clk 0:01:32]} 36. Rg4 {[%clk 0:00:33]}  Qf5 {[%clk 0:01:25]} 37. f3 {[%clk 0:00:30]}  Nf6 {[%clk 0:01:21]} 38. R4g2 {[%clk 0:00:28]}  Nh5 {[%clk 0:01:15]} 39. Qe4 {[%clk 0:00:26]}  Qe6 {[%clk 0:01:11]} 40. Qg4 {[%clk 0:00:24]}  Qf7 {[%clk 0:01:06]} 41. Re1 {[%clk 0:00:20]}  Nf4 {[%clk 0:01:06]} 42. Rgg1 {[%clk 0:00:20]}  Bf6 {[%clk 0:00:55]} 43. Kh1 {[%clk 0:00:16]}  Ng6 {[%clk 0:00:53]} 44. Qf5 {[%clk 0:00:15]}  Qg7 {[%clk 0:00:50]} 45. e3 {[%clk 0:00:13]}  Bd8 {[%clk 0:00:48]} 46. Qg4 {[%clk 0:00:12]}  Kh7 {[%clk 0:00:44]} 47. f4 {[%clk 0:00:11]}  gxf4 {[%clk 0:00:43]} 48. exf4 {[%clk 0:00:10]}  Rxf4 {[%clk 0:00:43]} 49. Qg3 {[%clk 0:00:09]}  Qf6 {[%clk 0:00:40]} 50. Bxe5 {[%clk 0:00:09]}  Qf7 {[%clk 0:00:21]} 51. Bxf4 {[%clk 0:00:08]}  Nxf4 {[%clk 0:00:20]} 52. Ref1 {[%clk 0:00:07]}  Bc7 {[%clk 0:00:17]} 53. Qf3 {[%clk 0:00:06]}  Bd6 {[%clk 0:00:16]} 54. Qe4+ {[%clk 0:00:07]}  Kh8 {[%clk 0:00:16]} 55. Rg4 {[%clk 0:00:06]}  Qh5 {[%clk 0:00:14]} 56. Qf3 {[%clk 0:00:02]}  Ng6 {[%clk 0:00:11]} 57. Qf6+ {[%clk 0:00:01]}  Kh7 {[%clk 0:00:11]} 58. Qf7+ {[%clk 0:00:02]}  Kh8 {[%clk 0:00:11]} 59. Qf6+ {[%clk 0:00:02]}  Kh7 {[%clk 0:00:10]} 60. Qd8 {[%clk 0:00:02]}  Qxh3+ {[%clk 0:00:09]} 61. Kg1 {[%clk 0:00:01]}  Qxg4+ {[%clk 0:00:10]} 62. Kf2 {[%clk 0:00:01]}  Qf4+ {[%clk 0:00:10]} 63. Ke2 {[%clk 0:00:02]}  Qg4+ {[%clk 0:00:09]} 64. Kd2 {[%clk 0:00:02]}  Bf4+ {[%clk 0:00:09]} 65. Kc2 {[%clk 0:00:02]}  Qg2+ {[%clk 0:00:08]} 66. Kb3 {[%clk 0:00:03]}  Qxf1 {[%clk 0:00:08]} 67. Qd7+ {[%clk 0:00:03]}  Kg8 {[%clk 0:00:08]} 68. Qe8+ {[%clk 0:00:03]}  Kg7 {[%clk 0:00:07]} 69. Qd7+ {[%clk 0:00:03]}  Kf6 {[%clk 0:00:08]} 70. Qc6+ {[%clk 0:00:03]}  Kg5 {[%clk 0:00:08]} 71. Qe4 {[%clk 0:00:02]}  Ne5 {[%clk 0:00:07]} 0-1


[Site "https://www.chess.com"]

[Event "Titled Tuesday Blitz February 22 Early 2022"]
[White "Hess, Robert"]
[Black "Ivanisevic, Ivan"]
[WhiteFideId "2022036"]
[BlackFideId "912417"]
[WhiteElo "2557"]
[BlackElo "2495"]
[Result "1-0"]
[Round "09"]
[TimeControl "180+1"]
[Date "2022.02.22"]
[WhiteClock "0:00:08"]
[BlackClock "0:00:01"]

1. b3 {[%clk 0:03:00]}  b5 {[%clk 0:02:55]} 2. Bb2 {[%clk 0:03:01]}  Bb7 {[%clk 0:02:53]} 3. d3 {[%clk 0:03:00]}  Nf6 {[%clk 0:02:51]} 4. Nd2 {[%clk 0:03:00]}  g6 {[%clk 0:02:46]} 5. e3 {[%clk 0:02:57]}  Bg7 {[%clk 0:02:45]} 6. Ne2 {[%clk 0:02:57]}  O-O {[%clk 0:02:45]} 7. Rg1 {[%clk 0:02:55]}  d6 {[%clk 0:02:40]} 8. g4 {[%clk 0:02:55]}  e5 {[%clk 0:02:39]} 9. h4 {[%clk 0:02:43]}  Nbd7 {[%clk 0:02:39]} 10. g5 {[%clk 0:02:40]}  Nd5 {[%clk 0:02:31]} 11. h5 {[%clk 0:02:31]}  Nc5 {[%clk 0:02:23]} 12. Ne4 {[%clk 0:02:19]}  Nxe4 {[%clk 0:02:14]} 13. dxe4 {[%clk 0:02:19]}  Nb6 {[%clk 0:02:09]} 14. Qd3 {[%clk 0:02:13]}  a5 {[%clk 0:02:05]} 15. f3 {[%clk 0:01:34]}  b4 {[%clk 0:02:04]} 16. Qd2 {[%clk 0:01:22]}  Nd7 {[%clk 0:01:54]} 17. O-O-O {[%clk 0:01:05]}  Nc5 {[%clk 0:01:52]} 18. Ng3 {[%clk 0:01:01]}  a4 {[%clk 0:01:47]} 19. Bc4 {[%clk 0:00:53]}  axb3 {[%clk 0:01:29]} 20. axb3 {[%clk 0:00:54]}  Ra2 {[%clk 0:01:19]} 21. Qxb4 {[%clk 0:00:31]}  Qa8 {[%clk 0:01:18]} 22. Qc3 {[%clk 0:00:19]}  Rb8 {[%clk 0:00:57]} 23. Kd2 {[%clk 0:00:10]}  Ba6 {[%clk 0:00:43]} 24. Bxa6 {[%clk 0:00:07]}  Qxa6 {[%clk 0:00:44]} 25. Ra1 {[%clk 0:00:08]}  Rxa1 {[%clk 0:00:38]} 26. Rxa1 {[%clk 0:00:09]}  Qc8 {[%clk 0:00:38]} 27. hxg6 {[%clk 0:00:08]}  hxg6 {[%clk 0:00:38]} 28. Ne2 {[%clk 0:00:07]}  Qh3 {[%clk 0:00:36]} 29. b4 {[%clk 0:00:06]}  Ne6 {[%clk 0:00:36]} 30. Rg1 {[%clk 0:00:02]}  Qxf3 {[%clk 0:00:35]} 31. Qc4 {[%clk 0:00:02]}  Qf2 {[%clk 0:00:32]} 32. Bc3 {[%clk 0:00:01]}  Bf8 {[%clk 0:00:31]} 33. Qd5 {[%clk 0:00:01]}  Be7 {[%clk 0:00:30]} 34. Qd3 {[%clk 0:00:01]}  Nxg5 {[%clk 0:00:29]} 35. Qc4 {[%clk 0:00:02]}  Ne6 {[%clk 0:00:29]} 36. Kc1 {[%clk 0:00:02]}  Kf8 {[%clk 0:00:27]} 37. Rxg6 {[%clk 0:00:02]}  Qxe3+ {[%clk 0:00:27]} 38. Bd2 {[%clk 0:00:02]}  Qa3+ {[%clk 0:00:25]} 39. Kd1 {[%clk 0:00:02]}  Qa1+ {[%clk 0:00:18]} 40. Nc1 {[%clk 0:00:02]}  Nf4 {[%clk 0:00:14]} 41. Bxf4 {[%clk 0:00:02]}  exf4 {[%clk 0:00:14]} 42. Rg2 {[%clk 0:00:03]}  Qe5 {[%clk 0:00:10]} 43. Rf2 {[%clk 0:00:03]}  Bg5 {[%clk 0:00:09]} 44. Nd3 {[%clk 0:00:03]}  Qf6 {[%clk 0:00:09]} 45. Ke2 {[%clk 0:00:03]}  Re8 {[%clk 0:00:09]} 46. Qd5 {[%clk 0:00:03]}  Bh6 {[%clk 0:00:08]} 47. Kf3 {[%clk 0:00:04]}  Qg6 {[%clk 0:00:08]} 48. Rg2 {[%clk 0:00:04]}  Qe6 {[%clk 0:00:07]} 49. Qxe6 {[%clk 0:00:04]}  Rxe6 {[%clk 0:00:08]} 50. Rg4 {[%clk 0:00:04]}  Rf6 {[%clk 0:00:08]} 51. Rh4 {[%clk 0:00:05]}  Ke7 {[%clk 0:00:08]} 52. Rh5 {[%clk 0:00:05]}  Ke6 {[%clk 0:00:08]} 53. b5 {[%clk 0:00:05]}  Rg6 {[%clk 0:00:07]} 54. c4 {[%clk 0:00:06]}  Bg5 {[%clk 0:00:06]} 55. c5 {[%clk 0:00:05]}  Kd7 {[%clk 0:00:06]} 56. c6+ {[%clk 0:00:05]}  Ke6 {[%clk 0:00:05]} 57. Rh8 {[%clk 0:00:06]}  Kf6 {[%clk 0:00:03]} 58. Rc8 {[%clk 0:00:05]}  Bh6 {[%clk 0:00:03]} 59. Nxf4 {[%clk 0:00:05]}  Bxf4 {[%clk 0:00:01]} 60. Kxf4 {[%clk 0:00:06]}  Rg5 {[%clk 0:00:02]} 61. Rxc7 {[%clk 0:00:07]}  Rxb5 {[%clk 0:00:02]} 62. Rc8 {[%clk 0:00:07]}  Rc5 {[%clk 0:00:02]} 63. Ke3 {[%clk 0:00:07]}  Ke7 {[%clk 0:00:02]} 64. Kd4 {[%clk 0:00:07]}  Ke6 {[%clk 0:00:02]} 65. Re8+ {[%clk 0:00:07]}  Kf6 {[%clk 0:00:02]} 66. Rc8 {[%clk 0:00:07]}  Ke7 {[%clk 0:00:02]} 67. Rc7+ {[%clk 0:00:08]}  Ke6 {[%clk 0:00:02]} 68. Rc8 {[%clk 0:00:08]}  Rc1 {[%clk 0:00:02]} 69. Kd3 {[%clk 0:00:08]}  Ke7 {[%clk 0:00:01]} 70. Ke3 {[%clk 0:00:08]}  Rc5 {[%clk 0:00:01]} 71. Kd4 {[%clk 0:00:09]}  Kf6 {[%clk 0:00:01]} 72. Rh8 {[%clk 0:00:08]} 1-0


[Site "https://www.chess.com"]

[Event "Titled Tuesday Blitz February 22 Early 2022"]
[White "Hoffmann, Asa"]
[Black "Shohat, Yotam"]
[WhiteFideId "2001470"]
[BlackFideId "2813955"]
[WhiteElo "2117"]
[BlackElo "2119"]
[Result "0-1"]
[Round "09"]
[TimeControl "180+1"]
[Date "2022.02.22"]
[WhiteClock "0:00:04"]
[BlackClock "0:00:05"]

1. d4 {[%clk 0:02:55]}  Nf6 {[%clk 0:02:57]} 2. Bg5 {[%clk 0:02:54]}  Ne4 {[%clk 0:02:49]} 3. Bf4 {[%clk 0:02:54]}  e5 {[%clk 0:02:49]} 4. Bxe5 {[%clk 0:02:45]}  Nc6 {[%clk 0:02:42]} 5. Bg3 {[%clk 0:02:36]}  h5 {[%clk 0:02:40]} 6. f3 {[%clk 0:02:01]}  Nxg3 {[%clk 0:02:38]} 7. hxg3 {[%clk 0:02:00]}  Qg5 {[%clk 0:02:34]} 8. Kf2 {[%clk 0:01:53]}  h4 {[%clk 0:02:14]} 9. g4 {[%clk 0:01:45]}  Bd6 {[%clk 0:01:56]} 10. e3 {[%clk 0:01:38]}  Bg3+ {[%clk 0:01:55]} 11. Ke2 {[%clk 0:01:37]}  d5 {[%clk 0:01:51]} 12. Nc3 {[%clk 0:01:36]}  O-O {[%clk 0:01:31]} 13. Nh3 {[%clk 0:01:34]}  Qd8 {[%clk 0:01:19]} 14. a3 {[%clk 0:01:23]}  f5 {[%clk 0:01:18]} 15. g5 {[%clk 0:01:17]}  f4 {[%clk 0:01:15]} 16. Qd3 {[%clk 0:00:45]}  Bf5 {[%clk 0:01:11]} 17. Qb5 {[%clk 0:00:37]}  Nxd4+ {[%clk 0:01:03]} 18. exd4 {[%clk 0:00:35]}  Qe7+ {[%clk 0:01:03]} 19. Ne4 {[%clk 0:00:29]}  dxe4 {[%clk 0:00:41]} 20. Qd5+ {[%clk 0:00:26]}  Rf7 {[%clk 0:00:26]} 21. fxe4 {[%clk 0:00:24]}  Bxe4 {[%clk 0:00:20]} 22. Qe5 {[%clk 0:00:24]}  Re8 {[%clk 0:00:16]} 23. Qxe7 {[%clk 0:00:23]}  Rexe7 {[%clk 0:00:16]} 24. Kd2 {[%clk 0:00:23]}  f3 {[%clk 0:00:12]} 25. Bc4 {[%clk 0:00:20]}  fxg2 {[%clk 0:00:09]} 26. Rhg1 {[%clk 0:00:20]}  g6 {[%clk 0:00:06]} 27. Rae1 {[%clk 0:00:14]}  Kg7 {[%clk 0:00:04]} 28. Bxf7 {[%clk 0:00:11]}  Kxf7 {[%clk 0:00:05]} 29. Re2 {[%clk 0:00:10]}  Bf5 {[%clk 0:00:04]} 30. Nf2 {[%clk 0:00:07]}  Rxe2+ {[%clk 0:00:02]} 31. Kxe2 {[%clk 0:00:07]}  h3 {[%clk 0:00:03]} 32. Nxh3 {[%clk 0:00:06]}  Bxh3 {[%clk 0:00:03]} 33. Kf3 {[%clk 0:00:06]}  Bd6 {[%clk 0:00:04]} 34. c4 {[%clk 0:00:05]}  Ke6 {[%clk 0:00:04]} 35. c5 {[%clk 0:00:05]}  Bh2 {[%clk 0:00:03]} 36. Re1+ {[%clk 0:00:04]}  Kf5 {[%clk 0:00:04]} 37. d5 {[%clk 0:00:04]}  g1=Q {[%clk 0:00:03]} 38. Rxg1 {[%clk 0:00:04]}  Bxg1 {[%clk 0:00:04]} 39. d6 {[%clk 0:00:04]}  cxd6 {[%clk 0:00:05]} 40. cxd6 {[%clk 0:00:04]}  Ke6 {[%clk 0:00:05]} 41. d7 {[%clk 0:00:04]}  Kxd7 {[%clk 0:00:05]} 0-1


[Site "https://www.chess.com"]

[Event "Titled Tuesday Blitz February 22 Early 2022"]
[White "Hua, Lefong"]
[Black "Moskvin, Anatoly"]
[WhiteFideId "2602253"]
[BlackFideId "24199990"]
[WhiteElo "2571"]
[BlackElo "2079"]
[Result "1/2-1/2"]
[Round "09"]
[TimeControl "180+1"]
[Date "2022.02.22"]
[WhiteClock "0:01:32"]
[BlackClock "0:00:05"]

1. d4 {[%clk 0:03:00]}  Nf6 {[%clk 0:02:59]} 2. c4 {[%clk 0:03:01]}  c5 {[%clk 0:03:00]} 3. d5 {[%clk 0:03:01]}  b5 {[%clk 0:03:00]} 4. Qc2 {[%clk 0:03:00]}  bxc4 {[%clk 0:02:54]} 5. e4 {[%clk 0:03:00]}  e5 {[%clk 0:02:54]} 6. Bxc4 {[%clk 0:02:58]}  d6 {[%clk 0:02:53]} 7. Nf3 {[%clk 0:02:58]}  Be7 {[%clk 0:02:54]} 8. O-O {[%clk 0:02:58]}  O-O {[%clk 0:02:55]} 9. Re1 {[%clk 0:02:54]}  Nbd7 {[%clk 0:02:52]} 10. Na3 {[%clk 0:02:51]}  Rb8 {[%clk 0:02:27]} 11. Bf1 {[%clk 0:02:45]}  Nb6 {[%clk 0:02:24]} 12. Nd2 {[%clk 0:02:44]}  Nh5 {[%clk 0:02:18]} 13. Nac4 {[%clk 0:02:41]}  f5 {[%clk 0:02:11]} 14. Na5 {[%clk 0:02:29]}  Bd7 {[%clk 0:01:34]} 15. exf5 {[%clk 0:02:23]}  Nxd5 {[%clk 0:01:30]} 16. Bc4 {[%clk 0:02:16]}  Nf6 {[%clk 0:01:20]} 17. Ne4 {[%clk 0:02:10]}  Qxa5 {[%clk 0:01:01]} 18. Nxf6+ {[%clk 0:02:08]}  Rxf6 {[%clk 0:01:01]} 19. Bxd5+ {[%clk 0:02:07]}  Kh8 {[%clk 0:01:01]} 20. Bd2 {[%clk 0:02:05]}  Qb6 {[%clk 0:01:00]} 21. Bc3 {[%clk 0:02:02]}  Bxf5 {[%clk 0:00:59]} 22. Be4 {[%clk 0:02:02]}  Rbf8 {[%clk 0:00:51]} 23. f3 {[%clk 0:02:00]}  c4+ {[%clk 0:00:35]} 24. Kh1 {[%clk 0:02:00]}  Be6 {[%clk 0:00:16]} 25. Rad1 {[%clk 0:01:57]}  Rh6 {[%clk 0:00:15]} 26. Bd2 {[%clk 0:01:42]}  Rh5 {[%clk 0:00:11]} 27. Be3 {[%clk 0:01:42]}  Qa5 {[%clk 0:00:08]} 28. Bd2 {[%clk 0:01:35]}  Qb6 {[%clk 0:00:08]} 29. Be3 {[%clk 0:01:31]}  Qa5 {[%clk 0:00:08]} 30. Bd2 {[%clk 0:01:32]}  Qb6 {[%clk 0:00:05]} 1/2-1/2


[Site "https://www.chess.com"]